bitfinex-derivatives/quotes_SOLF0:USTF0_20250224
["timestamp","ask_amount","ask_price","bid_price","bid_amount"]
[1740365907381,6.31974339,162.68,162.67,0.04417356]
[1740365907776,6.31974339,162.68,162.67,7.356e-05]
[1740365909783,6.3211429,162.68,162.67,7.356e-05]
[1740365911880,6.3211429,162.68,162.67,24.48538317]
[1740365912077,0.04241533,162.7,162.67,24.48538317]
[1740365914780,0.04241533,162.7,162.69,24.48530961]
[1740365915783,0.04241533,162.7,162.67,24.48538317]
[1740365915985,0.04241533,162.7,162.67,7.356e-05]
[1740365921689,0.04241533,162.7,162.69,24.48530961]
[1740365922688,5.941,162.75,162.69,24.48530961]
[1740365922885,5.941,162.75,162.71,24.48530961]
[1740365923489,5.941,162.75,162.73,24.48530961]
[1740365923490,3.0675,162.75,162.73,24.48530961]
[1740365923884,2.7965,162.82,162.73,24.48530961]
[1740365923885,0.04198241,162.76,162.73,24.48530961]
[1740365924590,0.04198241,162.76,162.73,30.63000961]
[1740365925193,0.04198241,162.76,162.73,24.48530961]
[1740365925390,0.04198241,162.76,162.72,0.04250139]
[1740365930198,0.04198241,162.76,162.69,24.48530961]
[1740365931291,0.04198241,162.76,162.71,0.04480275]
[1740365932698,0.04198241,162.76,162.71,24.53011236]
[1740365933698,0.04198241,162.76,162.75,24.48530961]
[1740365936597,5.7235,162.81,162.75,24.48530961]
[1740365936806,5.7235,162.81,162.78,24.48530961]
[1740365937693,5.76772281,162.81,162.78,24.5252168]
[1740365938808,0.04422281,162.81,162.78,24.5252168]
[1740365939000,0.04422281,162.81,162.8,24.48530961]
[1740365939203,5.8258,162.86,162.82,24.48530961]
[1740365940309,5.86517659,162.86,162.82,24.52786704]
[1740365940621,0.03937659,162.86,162.84,24.48530961]
[1740365941510,0.03937659,162.86,162.82,24.52786704]
[1740365943815,0.03937659,162.86,162.84,24.48530961]
[1740365945104,0.03937659,162.86,162.82,24.52786704]
[1740365948718,0.03937659,162.86,162.82,0.04255743]
[1740365954120,0.03937659,162.86,162.82,24.52786704]
[1740365954316,0.03937659,162.86,162.82,30.66916704]
[1740365954522,0.03937659,162.86,162.84,24.48530961]
[1740365955522,0.03937659,162.86,162.82,24.52786704]
[1740365956024,0.03937659,162.86,162.84,24.48530961]
[1740365956324,0.03937659,162.86,162.82,30.66936704]
[1740365957717,0.03937659,162.86,162.82,24.52786704]
[1740365957915,0.03937659,162.86,162.84,24.48530961]
[1740365959321,0.03937659,162.86,162.85,6.1404]
[1740365961716,5.8258,162.92,162.85,21.7706672]
[1740365961931,5.8258,162.92,162.89,15.6302672]
[1740365962926,5.86980674,162.92,162.89,15.67228566]
[1740365964025,5.86980674,162.92,162.91,15.6302672]
[1740365965726,0.04400674,162.92,162.91,15.6302672]
[1740365971034,0.04400674,162.92,162.9,15.6302672]
[1740365972234,0.04400674,162.92,162.89,0.04201846]
[1740365972426,15.6302672,162.9,162.84,15.6302672]
[1740365972631,15.6302672,162.88,162.82,15.6302672]
[1740365973533,15.6302672,162.86,162.8,15.6302672]
[1740365973732,0.04515372,162.87,162.83,0.04415771]
[1740365973932,24.44887995,162.88,162.78,24.44887995]
[1740365974229,0.04378764,162.84,162.81,0.03884221]
[1740365974628,0.04378764,162.84,162.76,24.44887995]
[1740365974828,24.44887995,162.84,162.74,24.44887995]
[1740365975026,11.9781,162.83,162.74,24.44887995]
[1740365975827,0.04030572,162.8,162.77,0.04583573]
[1740365976336,0.04030572,162.8,162.77,3.573e-05]
[1740365977537,24.48918567,162.8,162.77,3.573e-05]
[1740365978338,24.44887995,162.78,162.77,3.573e-05]
[1740365979041,24.44887995,162.79,162.77,3.573e-05]
[1740365979236,24.48918567,162.8,162.77,3.573e-05]
[1740365979939,3.9141,162.79,162.77,3.573e-05]
[1740365981231,3.7291,162.78,162.77,3.573e-05]
[1740365982938,28.17797995,162.78,162.77,3.573e-05]
[1740365984630,3.7291,162.78,162.77,3.573e-05]
[1740365988038,3.9141,162.79,162.77,3.573e-05]
[1740365989139,0.04030572,162.8,162.77,3.573e-05]
[1740365992548,24.48918567,162.8,162.77,3.573e-05]
[1740365992946,3.6791,162.79,162.77,3.573e-05]
[1740365997757,15.6640699,162.78,162.77,3.573e-05]
[1740366001060,16.79061847,162.78,162.77,3.573e-05]
[1740366001255,15.6640699,162.78,162.77,3.573e-05]
[1740366001461,16.79056982,162.78,162.77,3.573e-05]
[1740366001757,16.79056982,162.78,162.53,173.1845]
[1740366001955,15.6640699,162.73,162.66,15.6640699]
[1740366002159,15.6640699,162.71,162.64,15.6640699]
[1740366002360,15.6640699,162.69,162.64,15.6640699]
[1740366002566,15.6640699,162.71,162.64,15.6640699]
[1740366002856,15.6640699,162.71,162.66,15.6640699]
[1740366003058,0.04497259,162.69,162.66,15.7045837]
[1740366003555,0.04497259,162.69,162.66,0.0405138]
[1740366005162,8.34497259,162.69,162.66,0.0405138]
[1740366008153,8.34497259,162.69,162.66,1.38e-05]
[1740366010265,24.49334388,162.67,162.46,8.51804479]
[1740366010468,24.49334388,162.63,162.53,24.49334388]
[1740366010865,24.49334388,162.63,162.55,24.49334388]
[1740366011366,0.0405408,162.61,162.57,0.04554471]
[1740366012661,0.0405408,162.61,162.57,24.53888859]
[1740366013166,0.0405408,162.61,162.57,0.04554471]
[1740366014364,0.0405408,162.61,162.57,6.19654471]
[1740366014664,0.0405408,162.61,162.57,0.04554471]
[1740366014861,0.0405408,162.61,162.57,24.53888859]
[1740366015264,0.0405408,162.61,162.59,24.49334388]
[1740366016877,0.0405408,162.61,162.57,0.04554471]
[1740366021685,8.3,162.6,162.57,4.471e-05]
[1740366021877,24.49334388,162.59,162.57,4.471e-05]
[1740366022278,24.49334388,162.59,162.47,6.1544]
[1740366022479,8.3,162.6,162.39,8.51804479]
[1740366022480,24.49334388,162.54,162.43,24.49334388]
[1740366022882,24.49334388,162.5,162.39,39.16908867]
[1740366023080,8.32,162.49,162.39,33.01138867]
[1740366023286,24.49334388,162.48,162.39,8.51804479]
[1740366023581,0.04347697,162.46,162.42,0.04049757]
[1740366023979,7.3571,162.53,162.44,24.49334388]
[1740366024285,8.34,162.56,162.48,24.49334388]
[1740366024584,32.83334388,162.56,162.39,8.51804479]
[1740366024781,24.49334388,162.52,162.41,24.49334388]
[1740366025187,0.04695765,162.48,162.45,0.04157576]
[1740366027885,8.38,162.47,162.45,7.576e-05]
[1740366028089,12.0118,162.47,162.45,7.576e-05]
[1740366030792,3.6318,162.47,162.45,7.576e-05]
[1740366030986,0.04695765,162.48,162.45,7.576e-05]
[1740366031688,24.49334388,162.57,162.45,24.49341964]
[1740366031883,24.49334388,162.55,162.37,8.38]
[1740366032084,24.49334388,162.55,162.46,24.49334388]
[1740366032586,24.49334388,162.57,162.48,24.49334388]
[1740366032987,0.03938106,162.54,162.51,0.03939717]
[1740366034396,24.49334388,162.53,162.44,6.1556]
[1740366034588,3.5497,162.52,162.44,6.1556]
[1740366034993,3.5497,162.52,162.42,30.64984388]
[1740366035193,3.5497,162.52,162.42,24.49334388]
[1740366035596,0.04217211,162.49,162.45,0.0421162]
[1740366037300,24.53551599,162.49,162.45,0.0421162]
[1740366037597,39.35086334,162.49,162.36,41.82609123]
[1740366037905,39.30869123,162.49,162.36,45.46729123]
[1740366038101,39.30869123,162.49,162.35,2.485]
[1740366038302,39.30869123,162.46,162.35,2.485]
[1740366038907,0.04621822,162.42,162.39,0.02950563]
[1740366040509,0.04621822,162.42,162.31,6.1608]
[1740366040709,39.30869123,162.43,162.28,39.30869123]
[1740366041108,39.30869123,162.43,162.29,102.90798789]
[1740366041305,39.30869123,162.4,162.29,96.74668789]
[1740366041805,0.03959503,162.36,162.29,96.74668789]
[1740366042009,0.03959503,162.36,162.22,39.30869123]
[1740366042206,39.30869123,162.34,162.22,39.30869123]
[1740366042409,39.35097982,162.31,162.18,8.51804479]
[1740366042804,39.30869123,162.31,162.18,8.51804479]
[1740366043009,0.04381307,162.26,162.2,39.30869123]
[1740366043514,0.04381307,162.26,162.18,8.51804479]
[1740366043715,0.04381307,162.26,162.2,39.30869123]
[1740366044211,0.04381307,162.26,162.18,8.51804479]
[1740366046416,0.04381307,162.26,162.22,39.30869123]
[1740366046618,0.04381307,162.26,162.18,2.5333]
[1740366046812,0.04381307,162.26,162.2,39.30869123]
[1740366047213,0.04381307,162.26,162.22,6.1639]
[1740366047410,0.04381307,162.26,162.18,2.5333]
[1740366047916,0.04381307,162.26,162.16,45.47499123]
[1740366048118,0.04381307,162.26,162.16,39.30869123]
[1740366048319,7.4941,162.27,162.13,2.5333]
[1740366048524,0.04038527,162.23,162.1,2.6512]
[1740366048718,0.04038527,162.23,162.13,39.30869123]
[1740366049019,0.03915142,162.2,162.1,2.6512]
[1740366049214,0.03915142,162.2,162.1,41.95989123]
[1740366049419,39.30869123,162.25,162.11,6.1683]
[1740366049621,0.04256866,162.17,162.1,41.95989123]
[1740366049917,0.04256866,162.17,162.12,6.1681]
[1740366050226,0.04256866,162.17,162.1,41.95989123]
[1740366050517,0.04256866,162.17,162.13,39.30869123]
[1740366052110,0.04256866,162.17,162.11,2.5346]
[1740366052316,0.04256866,162.17,162.15,39.30869123]
[1740366052921,7.4941,162.27,162.15,39.30869123]
[1740366053116,7.4941,162.27,162.18,45.47419123]
[1740366053317,8.68,162.28,162.21,39.30869123]
[1740366053819,3.6245,162.3,162.21,39.30869123]
[1740366054115,0.0440626,162.26,162.23,0.03985645]
[1740366056822,7.364,162.33,162.24,39.30869123]
[1740366057022,8.98,162.36,162.27,39.30869123]
[1740366057522,8.98,162.36,162.24,39.30869123]
[1740366058019,0.03937736,162.32,162.28,0.04099209]
[1740366060223,0.03937736,162.32,162.28,39.34968332]
[1740366060721,0.03937736,162.32,162.28,0.04099209]
[1740366061622,0.03937736,162.32,162.28,39.34968332]
[1740366062019,0.03937736,162.32,162.28,0.04099209]
[1740366062622,0.03937736,162.32,162.28,9.209e-05]
[1740366063624,39.30869123,162.31,162.28,9.209e-05]
[1740366063824,9.08,162.3,162.28,9.209e-05]
[1740366064225,3.7054,162.29,162.28,9.209e-05]
[1740366064424,3.7054,162.29,162.16,39.30869123]
[1740366064626,39.30869123,162.27,162.16,39.30869123]
[1740366065129,39.30869123,162.27,162.14,39.30869123]
[1740366065631,0.04326022,162.22,162.19,0.04083796]
[1740366067730,0.04326022,162.22,162.2,39.30869123]
[1740366067921,46.78559123,162.33,162.2,39.30869123]
[1740366067922,16.5569,162.33,162.2,39.30869123]
[1740366068121,16.5569,162.33,162.23,39.30869123]
[1740366068528,16.5569,162.33,162.22,6.1642]
[1740366069030,0.04393789,162.29,162.26,0.04666618]
[1740366070325,0.04393789,162.29,162.26,6.618e-05]
[1740366080044,39.30869123,162.27,162.26,6.618e-05]
[1740366081953,0.04393789,162.29,162.26,6.618e-05]
[1740366084750,0.04393789,162.29,162.26,39.30875741]
[1740366084954,3.781,162.36,162.26,39.30875741]
[1740366085154,3.781,162.36,162.26,39.30869123]
[1740366085556,16.8288,162.39,162.28,6.162]
[1740366085957,16.8288,162.39,162.27,6.1624]
[1740366086153,0.04040433,162.35,162.32,8.93e-06]
[1740366086364,39.30869123,162.35,162.17,192.0]
[1740366086554,39.30869123,162.32,162.16,39.30869123]
[1740366086856,7.8488,162.31,162.2,6.1649]
[1740366087057,7.8488,162.31,162.16,39.30869123]
[1740366087357,7.8488,162.31,162.08,48.26869123]
[1740366087358,39.30869123,162.29,162.17,39.30869123]
[1740366087559,0.0430432,162.25,162.22,0.03922835]
[1740366088151,0.0430432,162.25,162.22,2.835e-05]
[1740366089457,3.6306432,162.25,162.22,2.835e-05]
[1740366095559,39.30869123,162.23,162.22,2.835e-05]
[1740366096160,3.6306432,162.25,162.22,2.835e-05]
[1740366102769,8.9,162.24,162.22,2.835e-05]
[1740366105071,7.5087,162.23,162.22,2.835e-05]
[1740366117981,48.3061819,162.25,162.22,2.835e-05]
[1740366122378,48.3061819,162.25,162.09,39.4231387]
[1740366122580,39.4231387,162.22,162.09,39.4231387]
[1740366123577,0.04495783,162.17,162.09,39.4231387]
[1740366124191,0.04495783,162.17,162.09,45.5920387]
[1740366124889,0.04495783,162.17,162.09,39.4231387]
[1740366127789,0.04495783,162.17,162.09,24.65175576]
[1740366132095,0.04495783,162.17,162.11,24.65175576]
[1740366132296,33.43175576,162.23,162.13,24.65175576]
[1740366132494,0.04685549,162.16,162.13,24.65175576]
[1740366132694,24.65175576,162.21,162.11,24.65175576]
[1740366132898,0.04388835,162.16,162.09,24.65175576]
[1740366134793,0.04388835,162.16,162.11,24.65175576]
[1740366136395,0.04388835,162.16,162.09,24.65175576]
[1740366136589,24.65175576,162.17,162.07,24.65175576]
[1740366136792,0.03899215,162.14,162.07,24.65175576]
[1740366137298,0.03899215,162.14,162.08,6.1696]
[1740366137500,0.03899215,162.14,162.07,24.65175576]
[1740366138200,0.03899215,162.14,162.09,24.65175576]
[1740366139696,0.03899215,162.14,162.07,24.65175576]
[1740366140398,0.03899215,162.14,162.09,24.65175576]
[1740366141698,0.03899215,162.14,162.07,30.82145576]
[1740366141900,0.03899215,162.14,162.07,24.65175576]
[1740366142102,0.03899215,162.14,162.07,30.82175576]
[1740366142397,0.03899215,162.14,162.07,24.65175576]
[1740366142900,0.03899215,162.14,162.08,6.1696]
[1740366143294,0.03899215,162.14,162.09,30.82095576]
[1740366143894,0.03899215,162.14,162.11,24.65175576]
[1740366144096,24.65175576,162.22,162.11,24.65175576]
[1740366144297,24.65175576,162.22,162.13,24.65175576]
[1740366145200,0.04057161,162.19,162.17,24.65175576]
[1740366145398,24.65175576,162.26,162.17,24.65175576]
[1740366145593,24.65175576,162.26,162.17,33.42945576]
[1740366145899,1.1698964,162.28,162.19,24.65175576]
[1740366146605,0.04284345,162.25,162.22,0.04226809]
[1740366146809,1.1698964,162.28,162.22,0.04226809]
[1740366147002,231.19758914,162.31,162.22,0.04226809]
[1740366147501,96.94229263,162.31,162.23,24.65175576]
[1740366148000,24.69493781,162.29,162.25,0.0389949]
[1740366148211,210.86310964,162.35,162.12,161.48]
[1740366148212,24.65175576,162.27,162.17,24.65175576]
[1740366149301,0.04534959,162.24,162.2,0.04659438]
[1740366152905,0.04534959,162.24,162.21,24.65175576]
[1740366154408,0.04534959,162.24,162.2,0.04659438]
[1740366161411,0.04534959,162.24,162.21,24.65175576]
[1740366161714,12.5111,162.32,162.23,24.65175576]
[1740366161907,3.6311,162.32,162.23,24.65175576]
[1740366162113,3.6311,162.32,162.25,24.65175576]
[1740366162305,24.65175576,162.37,162.27,24.65175576]
[1740366162710,19.9297,162.38,162.29,24.65175576]
[1740366163019,0.04273025,162.34,162.31,24.65175576]
[1740366163611,96.94229263,162.4,162.33,24.65175576]
[1740366163921,96.94229263,162.4,162.35,24.65175576]
[1740366165017,0.0451208,162.39,162.36,0.04204261]
[1740366165217,24.65175576,162.46,162.37,24.65175576]
[1740366165518,0.04454425,162.39,162.37,24.65175576]
[1740366165716,8.86,162.46,162.34,39.31694409]
[1740366166012,0.04652942,162.4,162.36,0.04485108]
[1740366166213,0.04652942,162.4,162.34,39.31694409]
[1740366166418,0.04652942,162.4,162.36,0.04519063]
[1740366167513,0.04652942,162.4,162.37,39.31694409]
[1740366168018,12.4693,162.5,162.38,6.1581]
[1740366168311,3.6964,162.49,162.38,6.1581]
[1740366169217,0.04218918,162.45,162.42,0.04220855]
[1740366171816,0.04218918,162.45,162.43,39.31694409]
[1740366172222,0.04218918,162.45,162.42,6.19850855]
[1740366172821,0.04218918,162.45,162.42,0.04220855]
[1740366176324,8.8,162.44,162.32,41.71114409]
[1740366176526,3.6996,162.43,162.32,39.31694409]
[1740366177022,3.6996,162.43,162.31,2.4056]
[1740366177218,3.6996,162.43,162.33,39.31694409]
[1740366177420,3.6187,162.42,162.33,39.31694409]
[1740366177725,0.04170745,162.4,162.36,39.35914975]
[1740366177919,12.4187,162.47,162.37,6.1584]
[1740366178125,0.0395886,162.4,162.36,39.3585793]
[1740366178323,12.4187,162.47,162.36,39.31694409]
[1740366178525,0.04679981,162.4,162.36,0.03931093]
[1740366178722,0.04679981,162.4,162.33,39.31694409]
[1740366178922,0.04679981,162.4,162.36,0.04475499]
[1740366180624,0.04679981,162.4,162.36,5.499e-05]
[1740366181126,39.31694409,162.39,162.36,5.499e-05]
[1740366181326,39.31694409,162.39,162.24,200.55694409]
[1740366181327,12.6558,162.38,162.24,200.55694409]
[1740366181528,39.31694409,162.36,162.24,39.31694409]
[1740366181922,39.31694409,162.36,162.21,39.31694409]
[1740366182223,39.31694409,162.33,162.21,39.31694409]
[1740366182430,39.31694409,162.3,162.18,39.31694409]
[1740366182629,11.02291103,162.29,162.25,4.847e-05]
[1740366182927,8.8,162.28,162.15,39.31694409]
[1740366183831,0.04000712,162.23,162.2,0.04625422]
[1740366184626,0.04000712,162.23,162.15,39.31694409]
[1740366185526,0.04000712,162.23,162.18,39.31694409]
[1740366185730,19.7578,162.29,162.18,39.31694409]
[1740366185925,0.04229367,162.22,162.21,39.31694409]
[1740366186227,8.78,162.32,162.23,6.1639]
[1740366186424,8.78,162.32,162.24,39.31694409]
[1740366186625,7.5266,162.34,162.27,39.31694409]
[1740366187026,39.31694409,162.41,162.3,39.31694409]
[1740366187328,3.8116,162.4,162.33,39.31694409]
[1740366187528,0.04719772,162.37,162.3,39.31694409]
[1740366187725,0.04719772,162.37,162.35,8.126e-05]
[1740366188030,8.78,162.37,162.24,39.31694409]
[1740366188328,39.31694409,162.35,162.21,39.31694409]
[1740366189030,0.04020203,162.3,162.26,0.04099238]
[1740366189218,0.04020203,162.3,162.26,9.238e-05]
[1740366189619,8.78,162.29,162.26,9.238e-05]
[1740366189829,7.5456,162.28,162.26,9.238e-05]
[1740366190323,3.6995,162.28,162.26,9.238e-05]
[1740366190523,0.04020203,162.3,162.26,9.238e-05]
[1740366191329,0.04020203,162.3,162.27,39.31694409]
[1740366191726,0.04020203,162.3,162.28,6.1619]
[1740366191926,0.04020203,162.3,162.27,39.31694409]
[1740366192128,0.04020203,162.3,162.27,45.47924409]
[1740366192328,0.04020203,162.3,162.27,39.31694409]
[1740366193228,3.9083,162.36,162.27,39.31694409]
[1740366193526,7.4547,162.4,162.33,39.31694409]
[1740366193725,3.8244,162.45,162.33,39.31694409]
[1740366193926,3.8244,162.45,162.36,39.31694409]
[1740366194133,3.8851,162.46,162.39,39.31694409]
[1740366194330,0.04244614,162.42,162.39,45.5150385]
[1740366194833,0.04244614,162.42,162.39,39.3572385]
[1740366196030,0.04244614,162.42,162.39,45.5150385]
[1740366197330,0.04244614,162.42,162.39,39.3572385]
[1740366197827,7.7062,162.5,162.42,6.1566]
[1740366198031,7.7062,162.5,162.42,45.47354409]
[1740366198226,7.7062,162.5,162.42,39.31694409]
[1740366198732,3.6896,162.52,162.42,39.31694409]
[1740366198932,0.04048046,162.48,162.44,0.04363331]
[1740366201035,0.04048046,162.48,162.36,39.31694409]
[1740366201231,39.31694409,162.5,162.34,4.8674]
[1740366201730,39.31694409,162.5,162.35,6.1593]
[1740366202037,39.31694409,162.47,162.24,231.31694409]
[1740366202335,0.04706721,162.44,162.41,0.03910724]
[1740366202535,0.04706721,162.44,162.3,2.3451]
[1740366202736,12.3083,162.46,162.32,6.1604]
[1740366203035,39.31694409,162.44,162.32,6.1604]
[1740366203235,3.6808,162.43,162.32,6.1604]
[1740366203637,0.03976405,162.39,162.3,45.47794409]
[1740366204131,0.03976405,162.39,162.3,39.31694409]
[1740366206933,0.03976405,162.39,162.3,45.47794409]
[1740366208039,0.03976405,162.39,162.3,39.31694409]
[1740366209439,0.03976405,162.39,162.33,39.31694409]
[1740366209640,3.8934,162.42,162.33,39.31694409]
[1740366209937,0.03925845,162.38,162.33,39.31694409]
[1740366210132,0.03925845,162.38,162.33,45.47674409]
[1740366212341,0.03925845,162.38,162.31,6.1608]
[1740366212642,0.03925845,162.38,162.3,39.31694409]
[1740366212837,0.03925845,162.38,162.29,90.49367719]
[1740366213044,0.03925845,162.38,162.27,39.31694409]
[1740366213242,39.31694409,162.39,162.27,39.31694409]
[1740366213443,0.0430213,162.34,162.27,39.31694409]
[1740366214639,0.0430213,162.34,162.24,39.31694409]
[1740366214939,3.3117,162.35,162.24,45.48044409]
[1740366215143,0.04608983,162.31,162.24,45.48044409]
[1740366217138,0.04608983,162.31,162.21,42.42304409]
[1740366217338,3.1511,162.34,162.21,39.31694409]
[1740366217539,0.04661635,162.28,162.21,39.31694409]
[1740366220451,0.04661635,162.28,162.21,45.48154409]
[1740366221145,0.04661635,162.28,162.22,6.1643]
[1740366221846,0.04661635,162.28,162.21,39.31694409]
[1740366222444,0.04661635,162.28,162.0,260.30178836]
[1740366222445,39.31694409,162.26,162.0,260.30178836]
[1740366222648,6.4625,162.25,162.12,39.31694409]
[1740366222844,0.0397218,162.16,162.12,39.31694409]
[1740366223144,8.66,162.24,162.12,39.31694409]
[1740366223345,0.0470327,162.16,162.12,39.31694409]
[1740366223541,8.66,162.24,162.12,39.31694409]
[1740366223744,0.04040529,162.16,162.12,39.31694409]
[1740366224043,0.04619605,162.16,162.12,39.31694409]
[1740366224246,0.04619605,162.16,162.15,39.31694409]
[1740366224744,0.04619605,162.16,162.08,39.31694409]
[1740366224745,0.04619605,162.16,162.12,39.31694409]
[1740366227550,0.04619605,162.16,162.08,45.48644409]
[1740366227551,0.04619605,162.16,162.08,39.31694409]
[1740366227853,0.04619605,162.16,162.09,6.1692]
[1740366228150,0.04619605,162.16,162.08,39.31694409]
[1740366228747,0.04619605,162.16,162.08,45.48644409]
[1740366228947,0.04619605,162.16,162.08,39.31694409]
[1740366229749,0.04619605,162.16,162.09,6.1689]
[1740366229949,0.04619605,162.16,162.11,39.31694409]
[1740366232261,0.04619605,162.16,162.08,39.31694409]
[1740366239667,39.31694409,162.11,161.95,192.0]
[1740366239864,11.1985,162.1,161.97,39.31694409]
[1740366240064,0.03998311,162.05,161.97,39.31694409]
[1740366240258,0.03998311,162.05,161.92,39.31694409]
[1740366240460,39.31694409,162.05,161.92,39.31694409]
[1740366240666,0.04663905,162.0,161.92,39.31694409]
[1740366240859,0.04663905,162.0,161.95,39.31694409]
[1740366241164,39.31694409,162.06,161.92,39.31694409]
[1740366241365,0.04317148,161.99,161.87,34.15089417]
[1740366241566,8.66,161.98,161.87,34.15089417]
[1740366241766,2.5585,162.02,161.87,34.15089417]
[1740366241767,0.03898977,161.96,161.87,34.15089417]
[1740366243973,0.03898977,161.96,161.84,39.31694409]
[1740366244272,0.03898977,161.96,161.9,39.31694409]
[1740366245273,0.03898977,161.96,161.93,39.31694409]
[1740366245476,2.5585,162.02,161.93,39.31694409]
[1740366245666,2.5585,162.02,161.96,39.31694409]
[1740366245969,161.56,162.13,161.99,39.31694409]
[1740366245970,48.01694409,162.11,161.99,39.31694409]
[1740366246172,1.12741045,162.1,161.99,39.31694409]
[1740366246471,6.1701,162.07,162.02,39.31694409]
[1740366246671,0.0397792,162.06,162.03,0.03995926]
[1740366249165,1.09637595,162.17,162.05,39.31694409]
[1740366249363,1.09637595,162.17,162.09,39.31694409]
[1740366249769,1.09637595,162.17,162.12,39.31694409]
[1740366250071,7.6275,162.23,162.15,39.31694409]
[1740366250269,0.04570511,162.16,162.15,39.31694409]
[1740366250468,13.6705,162.23,162.15,39.31694409]
[1740366250669,2.5096,162.23,162.18,39.31694409]
[1740366251373,7.6275,162.28,162.21,39.31694409]
[1740366251574,0.04483203,162.22,162.21,39.31694409]
[1740366251771,4.9905,162.28,162.22,6.1642]
[1740366251974,2.5057,162.34,162.24,39.31694409]
[1740366252273,2.5057,162.34,162.27,39.31694409]
[1740366252971,0.04494559,162.32,162.29,0.03999748]
[1740366253478,0.04494559,162.32,162.3,39.31694409]
[1740366253675,0.04494559,162.32,162.3,63.93205612]
[1740366254979,0.04494559,162.32,162.3,70.09315612]
[1740366255980,1.13079353,162.42,162.3,63.93205612]
[1740366256183,1.13079353,162.42,162.34,63.93205612]
[1740366256683,2.6467,162.43,162.34,63.93205612]
[1740366256875,2.6467,162.43,162.37,63.93205612]
[1740366257076,2.5739,162.44,162.37,63.93205612]
[1740366257382,0.04384392,162.42,162.38,0.04657008]
[1740366258177,0.04384392,162.42,162.4,63.93205612]
[1740366258779,0.04384392,162.42,162.41,6.1571]
[1740366258981,5.328,162.5,162.4,63.93205612]
[1740366259188,5.328,162.5,162.44,6.1559]
[1740366259189,2.6467,162.5,162.44,6.1559]
[1740366259983,2.6467,162.5,162.4,63.93205612]
[1740366260182,1.17115118,162.49,162.45,0.04391777]
[1740366260381,1.13157564,162.49,162.37,63.93205612]
[1740366261185,63.93205612,162.48,162.37,63.93205612]
[1740366261485,0.04302952,162.44,162.41,0.04221974]
[1740366264286,8.66302952,162.44,162.26,192.0]
[1740366264586,8.62,162.44,162.32,63.93205612]
[1740366264887,8.62,162.44,162.38,63.93205612]
[1740366265183,11.2667,162.5,162.38,63.93205612]
[1740366265381,1.13152459,162.49,162.38,63.93205612]
[1740366265683,0.04693608,162.46,162.42,0.04537912]
[1740366268684,8.7,162.45,162.32,63.93205612]
[1740366269188,8.7,162.45,162.32,70.09225612]
[1740366269389,1.13123458,162.44,162.32,70.09225612]
[1740366269589,1.13123458,162.44,162.32,63.93205612]
[1740366269790,0.04633019,162.4,162.36,0.04606206]
[1740366270791,63.97838631,162.4,162.26,63.93205612]
[1740366270994,1.13125147,162.39,162.26,70.09475612]
[1740366271290,63.93205612,162.37,162.22,63.93205612]
[1740366271486,8.68,162.36,162.22,70.09635612]
[1740366271688,1.13100406,162.35,162.22,63.93205612]
[1740366271883,0.04146567,162.31,162.27,0.04666752]
[1740366272682,63.97352179,162.31,162.11,192.0]
[1740366272890,1.13087886,162.3,162.16,63.93205612]
[1740366273890,0.03999469,162.25,162.21,0.03382099]
[1740366275789,0.03999469,162.25,162.12,6.1681]
[1740366276093,65.0615826,162.26,162.12,63.93205612]
[1740366276282,1.12952648,162.25,162.12,63.93205612]
[1740366276888,0.0440291,162.2,162.12,63.93205612]
[1740366277290,0.0440291,162.2,162.12,70.10005612]
[1740366277486,0.0440291,162.2,162.15,63.93205612]
[1740366277691,1.12975739,162.26,162.18,63.93205612]
[1740366277892,0.04197569,162.19,162.18,70.09785612]
[1740366278092,1.13026331,162.28,162.18,70.09785612]
[1740366278292,0.03963685,162.2,162.18,70.09785612]
[1740366278493,1.13026331,162.28,162.18,63.93205612]
[1740366278688,0.0438467,162.21,162.15,63.93205612]
[1740366278888,1.13026331,162.28,162.15,63.93205612]
[1740366279090,0.04710056,162.2,162.15,63.93205612]
[1740366279390,0.04710056,162.2,162.18,63.93205612]
[1740366279592,74.94665612,162.29,162.18,70.09755612]
[1740366279789,0.04018561,162.21,162.18,70.09755612]
[1740366279990,1.13018353,162.28,162.18,70.09755612]
[1740366280191,0.04044603,162.21,162.18,70.09755612]
[1740366280385,1.13018353,162.28,162.18,70.09755612]
[1740366280688,2.2946,162.29,162.18,63.93205612]
[1740366280889,0.04143314,162.25,162.18,63.93205612]
[1740366281492,0.04143314,162.25,162.22,6.1642]
[1740366282492,0.04143314,162.25,162.21,63.93205612]
[1740366282692,0.04143314,162.25,162.24,63.93205612]
[1740366284392,0.04143314,162.25,162.24,70.09555612]
[1740366284586,8.7,162.34,162.24,63.93205612]
[1740366285191,66.15415612,162.38,162.27,70.09435612]
[1740366285394,1.13120769,162.37,162.27,70.09435612]
[1740366285596,0.04662578,162.34,162.31,0.04143314]
[1740366289398,0.04662578,162.34,162.33,63.93205612]
[1740366291290,0.04662578,162.34,162.33,70.09215612]